fUSD/lending_fUSD_20240331
["ID","MTS","AMOUNT","RATE_DAILY","PERIOD"]
[321069888,1711864235089,-1114.99,0.00041799,4]
[321069889,1711864235098,-500.0,0.00041799,4]
[321069890,1711864235106,-1507.88,0.00041799,4]
[321069891,1711864235115,-1505.2,0.00041799,4]
[321069892,1711864235125,-716.97,0.00041799,4]
[321069893,1711864235134,-577.01,0.00041799,4]
[321069894,1711864235143,-1081.47,0.00041799,4]
[321069895,1711864235152,-500.0,0.00041799,4]
[321069896,1711864235161,-999.75,0.00041799,4]
[321069897,1711864235170,-500.0,0.00041799,4]
[321069898,1711864235179,-500.0,0.00041799,4]
[321069899,1711864235188,-916.56,0.00041799,4]
[321069900,1711864235198,-500.0,0.00041799,4]
[321069901,1711864235207,-500.0,0.00041799,4]
[321069902,1711864235216,-500.0,0.00041799,4]
[321069903,1711864235226,-500.0,0.00041799,4]
[321069904,1711864235235,-500.0,0.00041799,4]
[321069905,1711864235245,-769.44504553,0.00041799,4]
[321069906,1711864235260,-795.36495447,0.00041799,4]
[321069907,1711864235269,-314.75347994,0.00041799,4]
[321069908,1711864235280,-185.24652006,0.00041799,4]
[321069909,1711864235289,-500.0,0.00041799,4]
[321069910,1711864235298,-366.40271435,0.00041799,4]
[321069911,1711864235309,-692.11728565,0.00041799,4]
[321069912,1711864235318,-3404.48953369,0.000418,2]
[321069913,1711864235330,-3848.56064557,0.000418,2]
[321069914,1711864235341,-463.92556297,0.000418,2]
[321069915,1711864235353,-5530.42880815,0.000418,2]
[321069916,1711864235365,-652.95100857,0.000418,2]
[321069917,1711864235376,-281.96044177,0.000418,2]
[321069918,1711864235387,-2004.24537477,0.000418,2]
[321069928,1711864238086,-200.0,0.00040048,2]
[321069929,1711864238095,-509.45,0.00041641,4]
[321069930,1711864238105,-6791.81,0.00041799,4]
[321069931,1711864238114,-83.72143125,0.00041799,4]
[321069932,1711864238361,-416.27856875,0.00041799,4]
[321069933,1711864238371,-1946.51992451,0.000418,2]
[321069934,1711864238381,-171.47635468,0.000418,2]
[321069935,1711864238391,-232.20161394,0.000418,10]
[321069936,1711864238401,-159.0328103,0.00041809,2]
[321069937,1711864238411,-251.81131932,0.00041809,2]
[321069938,1711864238421,-171.47635468,0.00041809,2]
[321069939,1711864238432,-185.65323715,0.00041809,2]
[321069940,1711864238441,-1049.85512764,0.00041809,2]
[321069941,1711864238451,-426.13990474,0.00041809,2]
[321069942,1711864238462,-5.75115105,0.00041809,2]
[321069996,1711864243421,-2213.26129813,0.00041642,4]
[321069997,1711864243476,-463.71870187,0.00041642,4]
[321069998,1711864243487,-500.0,0.00041642,4]
[321069999,1711864243497,-123.57129813,0.00041809,2]
[321070000,1711864243533,-43.65465354,0.00041809,2]
[321070001,1711864243543,-1730.31210066,0.00041813,16]
[321070002,1711864243553,-151.79393708,0.00041881,4]
[321070003,1711864243563,-163.82,0.00041889,2]
[321070004,1711864243574,-1964.6319534,0.00041889,2]
[321070005,1711864243584,-1333.0455204,0.00041889,2]
[321070006,1711864243645,-1013.5001005,0.00041889,2]
[321070007,1711864243654,-2643.7269586,0.00041889,2]
[321070008,1711864243664,-150.8,0.0004189,2]
[321070009,1711864243673,-150.8,0.0004189,2]
[321070010,1711864243683,-150.8,0.0004189,2]
[321070011,1711864243692,-150.8,0.0004189,2]
[321070012,1711864243701,-150.8,0.0004189,2]
[321070013,1711864243710,-333.82243797,0.00041897,4]
[321070014,1711864243721,-442.16073757,0.00041897,2]
[321070015,1711864243731,-1894.96241704,0.00041898,4]
[321070016,1711864243742,-1148.6125888,0.00041898,4]
[321070017,1711864243751,-150.8,0.00041899,2]
[321070018,1711864243761,-150.8,0.00041899,2]
[321070019,1711864243770,-150.8,0.00041899,2]
[321070020,1711864243780,-150.8,0.00041899,2]
[321070021,1711864243790,-150.8,0.00041899,2]
[321070022,1711864243799,-150.8,0.00041899,2]
[321070023,1711864243809,-352.83895188,0.00041899,30]
[321070024,1711864243819,-203.89453,0.00041899,11]
[321070025,1711864243829,-150.8,0.00041899,2]
[321070026,1711864243839,-150.8,0.00041899,2]
[321070027,1711864243848,-150.8,0.00041899,2]
[321070028,1711864243858,-150.8,0.00041899,2]
[321070029,1711864243868,-38.08587081,0.00041899,2]
[321070030,1711864243880,-125.73412919,0.00041899,2]
[321070031,1711864243889,-150.8,0.00041899,2]
[321070032,1711864243899,-150.8,0.00041899,2]
[321070033,1711864243908,-150.8,0.00041899,2]
[321070034,1711864243918,-150.8,0.00041899,2]
[321070035,1711864243927,-150.8,0.00041899,2]
[321070036,1711864243937,-150.8,0.00041899,2]
[321070037,1711864243946,-150.8,0.00041899,2]
[321070038,1711864243956,-150.8,0.00041899,2]
[321070039,1711864243966,-150.8,0.00041899,2]
[321070040,1711864243975,-150.8,0.00041899,2]
[321070041,1711864243984,-150.8,0.00041899,2]
[321070042,1711864243994,-150.8,0.00041899,2]
[321070044,1711864244003,-150.8,0.00041899,2]
[321070046,1711864244012,-150.8,0.00041899,2]
[321070047,1711864244022,-150.8,0.00041899,2]
[321070048,1711864244031,-77.07535062,0.00041899,2]
[321070049,1711864244045,-73.72464938,0.00041899,2]
[321070050,1711864244054,-150.8,0.00041899,2]
[321070052,1711864244064,-150.8,0.00041899,2]
[321070054,1711864244074,-150.8,0.00041899,2]
[321070056,1711864244083,-150.8,0.00041899,2]
[321070058,1711864244092,-150.8,0.00041899,2]
[321070060,1711864244101,-150.8,0.00041899,2]
[321070062,1711864244109,-150.8,0.00041899,2]
[321070064,1711864244119,-2.8000219,0.00041899,2]
[321070067,1711864244140,-147.9999781,0.00041899,2]
[321070069,1711864244149,-150.8,0.00041899,2]
[321070071,1711864244159,-150.8,0.00041899,2]
[321070072,1711864244169,-89.46285331,0.00041899,2]
[321070074,1711864244181,-61.33714669,0.00041899,2]
[321070076,1711864244190,-298.63583525,0.000419,30]
[321070078,1711864244202,-364.39315611,0.000419,30]
[321070089,1711864923091,-155.0,0.00033391,4]
[321070090,1711864923114,-866.44774191,0.00033392,4]
[321070091,1711864923137,-155.0,0.00033393,4]
[321070092,1711864923158,-383.0,0.00033399,3]
[321070093,1711864923183,-160.19031849,0.00033401,2]
[321070094,1711864923205,-5782.98327556,0.00033512,2]
[321070095,1711864923227,-2497.37866404,0.00033513,4]
[321070096,1711864958713,-5000.0,0.00033512,4]
[321070123,1711865432273,-150.0,0.0003351,2]
[321070125,1711865432283,-4896.62248985,0.00033513,4]
[321070127,1711865432310,-17737.32333038,0.00033513,4]
[321070128,1711865432332,-258.75129401,0.00033513,4]
[321070129,1711865432343,-4903.46776207,0.00033513,4]
[321070130,1711865432391,-5235.34545528,0.00033513,4]
[321070131,1711865432401,-511.89655959,0.00033513,2]
[321070132,1711865432410,-2301.47127594,0.00033514,4]
[321070133,1711865432424,-737.77704635,0.00033514,4]
[321070134,1711865432449,-885.9549519,0.00033514,4]
[321070135,1711865432463,-562.34159793,0.00033514,4]
[321070136,1711865432579,-1041.76,0.00033514,4]
[321070137,1711865432602,-1380.44026994,0.00033514,4]
[321070138,1711865432616,-981.11828005,0.00033514,4]
[321070139,1711865432627,-2932.72729481,0.00033515,4]
[321070140,1711865432637,-474.89740802,0.00033516,4]
[321070141,1711865432648,-326.23028228,0.00033516,4]
[321070142,1711865432659,-3100.26514466,0.00033516,4]
[321070143,1711865432828,-1955.81790875,0.00033516,4]
[321070144,1711865432883,-313.94261921,0.00033516,4]
[321070145,1711865432938,-259.94301548,0.00033516,4]
[321070167,1711865438242,-516.075,0.00033516,4]
[321070173,1711865438305,-10620.64086055,0.00033516,4]
[321070174,1711865438352,-10033.38571187,0.00033516,4]
[321070175,1711865438363,-4073.2520941,0.00033517,4]
[321070176,1711865438372,-364.0012187,0.00033518,4]
[321070177,1711865438381,-826.44,0.00033518,2]
[321070178,1711865438391,-338.0,0.000356,3]
[321070179,1711865438400,-359.31,0.00037667,2]
[321070180,1711865438409,-948.96,0.00038759,2]
[321070181,1711865438419,-173.18,0.00038926,2]
[321070182,1711865438429,-186.07,0.00038934,5]
[321070183,1711865438438,-161.12,0.00038953,2]
[321070184,1711865438448,-586.80135608,0.00039048,4]
[321070185,1711865438459,-565.84,0.0003936,2]
[321070186,1711865438469,-800.0,0.0003944,2]
[321070187,1711865438479,-209.9,0.00039473,10]
[321070188,1711865438488,-530.46,0.00039502,120]
[321070189,1711865438497,-250.0,0.00039515,2]
[321070190,1711865438508,-250.0,0.00039542,112]
[321070191,1711865438517,-151.97,0.00039624,15]
[321070192,1711865438528,-1853.49,0.00039649,2]
[321070193,1711865438538,-200.0,0.00039713,2]
[321070194,1711865438547,-156.77,0.00039794,2]
[321070195,1711865438556,-359.31,0.00039931,2]
[321070196,1711865438566,-202.12,0.00040823,120]
[321070197,1711865438576,-156.66668872,0.00040827,30]
[321070198,1711865438585,-156.77,0.00040831,2]
[321070199,1711865438595,-4410.33368809,0.00041,4]
[321070200,1711865438605,-4036.8754571,0.00041,2]
[321070201,1711865438615,-1500.0,0.00041096,45]
[321070202,1711865438626,-300.0,0.000413,15]
[321070203,1711865438635,-157.37284058,0.00041389,30]
[321070204,1711865438645,-600.0,0.000414,15]
[321070205,1711865438654,-157.37284058,0.00041418,30]
[321070206,1711865438663,-2951.97909923,0.00041441,2]
[321070207,1711865438673,-155.59992333,0.00041441,2]
[321070208,1711865438683,-1373.6757,0.00041441,2]
[321070210,1711865438693,-165.01436315,0.00041442,2]
[321070212,1711865438702,-252.87229842,0.00041479,4]
[321070214,1711865438711,-948.96,0.00041499,2]
[321070216,1711865438721,-1000.0,0.000415,15]
[321070218,1711865438730,-176.20375304,0.000415,10]
[321070219,1711865438739,-163.82,0.00041531,2]
[321070220,1711865438751,-540.20378376,0.00041539,4]
[321070221,1711865438761,-580.468779,0.00041539,2]
[321070222,1711865438770,-157.60775281,0.00041539,4]
[321070223,1711865438780,-1187.5043961,0.00041539,4]
[321070224,1711865438791,-313.47574048,0.0004154,4]
[321070225,1711865438800,-1441.30536919,0.0004154,4]
[321070226,1711865438809,-500.0,0.0004154,4]
[321070227,1711865438818,-500.0,0.0004154,4]
[321070228,1711865438829,-500.0,0.0004154,4]
[321070229,1711865438840,-757.08,0.0004154,4]
[321070230,1711865438850,-231.05536831,0.00041541,4]
[321070231,1711865438861,-1343.64978144,0.00041541,2]
[321070232,1711865438872,-9077.66597291,0.00041541,4]
[321070233,1711865438881,-500.0,0.00041541,4]
[321070234,1711865438890,-1080.36,0.00041541,4]
[321070235,1711865438900,-500.0,0.00041541,4]
[321070236,1711865438910,-533.81259856,0.00041541,4]
[321070237,1711865438920,-500.0,0.00041541,4]
[321070238,1711865438929,-500.0,0.00041541,4]
[321070239,1711865438938,-500.0,0.00041541,4]
[321070240,1711865438948,-500.0,0.00041541,4]
[321070241,1711865438958,-500.0,0.00041541,4]
[321070242,1711865438968,-500.0,0.00041541,4]
[321070243,1711865438978,-500.0,0.00041541,4]
[321070244,1711865438987,-500.0,0.00041541,4]
[321070245,1711865438997,-150.0,0.00041541,4]
[321070246,1711865439009,-500.0,0.00041541,4]
[321070247,1711865439019,-500.0,0.00041541,4]
[321070248,1711865439028,-500.0,0.00041541,4]
[321070249,1711865439037,-690.79,0.00041541,4]
[321070250,1711865439049,-500.0,0.00041541,2]
[321070251,1711865439059,-500.0,0.00041541,4]
[321070252,1711865439069,-500.0,0.00041541,4]
[321070253,1711865439079,-500.0,0.00041541,4]
[321070254,1711865439089,-500.0,0.00041541,4]
[321070255,1711865439098,-500.0,0.00041541,4]
[321070256,1711865439108,-500.0,0.00041541,4]
[321070257,1711865439311,-500.0,0.00041541,4]
[321070258,1711865439322,-548.54,0.00041541,4]
[321070259,1711865439332,-500.0,0.00041541,4]
[321070260,1711865439340,-500.0,0.00041541,4]
[321070261,1711865439349,-500.0,0.00041541,4]
[321070262,1711865439360,-1332.11,0.00041541,4]
[321070263,1711865439370,-500.0,0.00041541,4]
[321070264,1711865439379,-500.0,0.00041541,4]
[321070265,1711865439388,-311.45341459,0.00041541,4]
[321070266,1711865439398,-639.55,0.00041541,4]
[321070267,1711865439407,-1534.42,0.00041541,4]
[321070268,1711865439416,-582.73,0.00041541,4]
[321070269,1711865439425,-2565.44,0.00041541,4]
[321070270,1711865439434,-500.0,0.00041541,4]
[321070271,1711865439443,-500.0,0.00041541,4]
[321070272,1711865439453,-500.0,0.00041541,4]
[321070273,1711865439463,-825.95,0.00041541,4]
[321070274,1711865439472,-500.0,0.00041541,4]
[321070275,1711865439481,-1347.83,0.00041541,4]
[321070276,1711865439490,-151.40024984,0.00041541,4]
[321070277,1711865439500,-5296.51,0.00041541,4]
[321070278,1711865439510,-18.38255107,0.00041541,4]
[321070279,1711865439634,-481.61744893,0.00041541,4]
[321070280,1711865439644,-500.0,0.00041541,4]
[321070281,1711865439653,-900.82,0.00041541,4]
[321070282,1711865439661,-500.0,0.00041541,4]
[321070283,1711865439670,-625.64,0.00041541,4]
[321070284,1711865439679,-500.0,0.00041541,4]
[321070285,1711865439688,-500.0,0.00041541,4]
[321070286,1711865439698,-500.0,0.00041541,4]
[321070287,1711865439706,-500.0,0.00041541,4]
[321070288,1711865439716,-500.0,0.00041541,4]
[321070289,1711865439725,-609.7,0.00041541,4]
[321070290,1711865439734,-500.0,0.00041541,4]
[321070291,1711865439743,-432.12255107,0.00041541,4]
[321070292,1711865439763,-1139.15744893,0.00041541,4]
[321070293,1711865439772,-922.12,0.00041541,4]
[321070294,1711865439781,-500.0,0.00041541,4]
[321070295,1711865439791,-730.2,0.00041541,4]
[321070296,1711865439800,-726.2,0.00041541,4]
[321070297,1711865439809,-1192.69,0.00041541,4]
[321070298,1711865439818,-500.0,0.00041541,4]
[321070299,1711865439827,-500.0,0.00041541,4]
[321070300,1711865439835,-500.0,0.00041541,4]
[321070301,1711865439845,-779.24,0.00041541,4]
[321070302,1711865439854,-529.77,0.00041541,4]
[321070303,1711865439864,-636.82,0.00041541,4]
[321070304,1711865439875,-500.0,0.00041541,4]
[321070305,1711865439884,-156.03742175,0.00041541,4]
[321070306,1711865439894,-631.33,0.00041541,4]
[321070307,1711865439906,-500.0,0.00041541,4]
[321070308,1711865439915,-500.0,0.00041541,4]
[321070309,1711865439924,-500.0,0.00041541,4]
[321070310,1711865439933,-500.0,0.00041541,4]
[321070311,1711865439942,-500.0,0.00041541,4]
[321070312,1711865439951,-500.0,0.00041541,4]
[321070313,1711865439960,-500.0,0.00041541,4]
[321070314,1711865439969,-1396.43,0.00041541,4]
[321070315,1711865439979,-500.0,0.00041541,4]
[321070316,1711865439988,-500.0,0.00041541,4]
[321070317,1711865439999,-500.0,0.00041541,4]
[321070318,1711865440009,-500.0,0.00041541,4]
[321070319,1711865440018,-589.73,0.00041541,4]
[321070320,1711865440027,-1550.59,0.00041541,4]
[321070321,1711865440036,-624.58,0.00041541,4]
[321070322,1711865440046,-500.0,0.00041541,4]
[321070323,1711865440055,-500.0,0.00041541,4]
[321070324,1711865440064,-505.2,0.00041541,4]
[321070325,1711865440073,-500.0,0.00041541,4]
[321070326,1711865440083,-500.0,0.00041541,4]
[321070327,1711865440092,-500.0,0.00041541,4]
[321070328,1711865440101,-586.65,0.00041541,4]
[321070329,1711865440110,-500.0,0.00041541,4]
[321070330,1711865440119,-517.94900724,0.00041541,4]
[321070331,1711865440129,-500.0,0.00041541,4]
[321070332,1711865440138,-500.0,0.00041541,4]
[321070333,1711865440147,-1068.53,0.00041541,4]
[321070334,1711865440156,-500.0,0.00041541,4]
[321070335,1711865440165,-768.95,0.00041541,4]
[321070336,1711865440175,-500.0,0.00041541,4]
[321070337,1711865440184,-500.0,0.00041541,4]
[321070338,1711865440193,-500.0,0.00041541,4]
[321070339,1711865440203,-500.0,0.00041541,4]
[321070340,1711865440212,-500.0,0.00041541,4]
[321070341,1711865440220,-780.69,0.00041541,4]
[321070342,1711865440230,-500.0,0.00041541,4]
[321070343,1711865440239,-1449.46,0.00041541,4]
[321070344,1711865440248,-1445.05,0.00041541,4]
[321070345,1711865440257,-1542.96,0.00041541,4]
[321070346,1711865440266,-1731.34,0.00041541,4]
[321070347,1711865440274,-500.0,0.00041541,4]
[321070348,1711865440283,-549.45,0.00041541,4]
[321070349,1711865440292,-1442.49,0.00041541,4]
[321070350,1711865440301,-503.62,0.00041541,4]
[321070351,1711865440310,-500.0,0.00041541,4]
[321070352,1711865440319,-5980.08,0.00041541,4]
[321070353,1711865440329,-687.1,0.00041541,4]
[321070354,1711865440338,-552.97,0.00041541,4]
[321070355,1711865440349,-500.0,0.00041541,4]
[321070356,1711865440358,-1888.69,0.00041541,4]
[321070357,1711865440368,-500.0,0.00041541,4]
[321070358,1711865440378,-1808.18,0.00041541,4]
[321070359,1711865440387,-500.0,0.00041541,4]
[321070360,1711865440397,-644.62,0.00041541,4]
[321070361,1711865440406,-500.0,0.00041541,4]
[321070362,1711865440415,-1036.41,0.00041541,4]
[321070363,1711865440425,-1166.28,0.00041541,4]
[321070364,1711865440434,-500.0,0.00041541,4]
[321070365,1711865440443,-570.61014339,0.00041541,4]
[321070366,1711865440452,-500.0,0.00041541,4]
[321070367,1711865440462,-1755.01,0.00041541,4]
[321070368,1711865440471,-958.09,0.00041541,4]
[321070369,1711865440480,-2481.81,0.00041541,4]
[321070370,1711865440489,-500.0,0.00041541,4]
[321070371,1711865440498,-500.0,0.00041541,4]
[321070372,1711865440507,-500.0,0.00041541,4]
[321070373,1711865440517,-500.0,0.00041541,4]
[321070374,1711865440526,-500.0,0.00041541,4]
[321070375,1711865440535,-878.37,0.00041541,4]
[321070376,1711865440544,-500.0,0.00041541,4]
[321070377,1711865440553,-500.0,0.00041541,4]
[321070378,1711865440562,-544.02,0.00041541,4]
[321070379,1711865440570,-520.21057022,0.00041541,4]
[321070380,1711865440579,-2064.19,0.00041541,4]
[321070381,1711865440588,-2615.92,0.00041541,4]
[321070382,1711865440598,-500.0,0.00041541,4]
[321070383,1711865440606,-500.0,0.00041541,4]
[321070384,1711865440615,-500.0,0.00041541,4]
[321070385,1711865440624,-665.2,0.00041541,4]
[321070386,1711865440633,-500.0,0.00041541,4]
[321070387,1711865440642,-746.88,0.00041541,4]
[321070388,1711865440651,-500.0,0.00041541,4]
[321070389,1711865440660,-3768.38,0.00041541,4]
[321070390,1711865440668,-191.69479847,0.00041541,4]
[321070391,1711865440677,-6298.97,0.00041541,4]
[321070392,1711865440687,-1012.47,0.00041541,4]
[321070393,1711865440695,-1499.61,0.00041541,4]
[321070394,1711865440704,-788.98,0.00041541,4]
[321070395,1711865440713,-500.0,0.00041541,4]
[321070396,1711865440723,-500.0,0.00041541,4]
[321070397,1711865440732,-500.0,0.00041541,4]
[321070398,1711865440741,-218.03449768,0.00041541,4]
[321070399,1711865440750,-269.97336351,0.00041541,4]
[321070400,1711865440759,-1174.68,0.00041541,4]
[321070401,1711865440768,-1014.42,0.00041541,4]
[321070402,1711865440777,-1114.5,0.00041541,4]
[321070403,1711865440786,-482.24781536,0.00041541,4]
[321070404,1711865440796,-1971.97,0.00041541,4]
[321070405,1711865440805,-500.0,0.00041541,4]
[321070406,1711865440814,-500.0,0.00041541,4]
[321070407,1711865440823,-500.0,0.00041541,4]
[321070408,1711865440833,-500.0,0.00041541,4]
[321070409,1711865440842,-500.0,0.00041541,4]
[321070410,1711865440851,-500.0,0.00041541,4]
[321070411,1711865440860,-1397.87,0.00041541,4]
[321070412,1711865440870,-6508.82,0.00041541,4]
[321070413,1711865440879,-500.0,0.00041541,4]
[321070414,1711865440888,-992.63,0.00041541,4]
[321070415,1711865440897,-500.0,0.00041541,4]
[321070416,1711865440906,-3334.6254,0.00041542,2]
[321070417,1711865440916,-158013.35275119,0.00041542,2]
[321070418,1711865441097,-258.97649991,0.00041542,2]
[321070419,1711865441108,-801.84665406,0.00041542,2]
[321070421,1711865443306,-400.0,0.000413,15]
[321070422,1711865443316,-612.9,0.00041541,4]
[321070423,1711865443326,-330.03321535,0.00041541,4]
[321070424,1711865443357,-1140.45678465,0.00041541,4]
[321070425,1711865443367,-4068.14659484,0.00041542,2]
[321070426,1711865443377,-1300.0,0.000416,15]
[321070427,1711865443387,-165.01436315,0.00041622,2]
[321070428,1711865443397,-503.91488084,0.00041641,4]
[321070429,1711865443407,-511.58218881,0.00041642,4]
[321070430,1711865443416,-513.51413179,0.00041642,4]
[321070431,1711865443426,-513.54927429,0.00041642,4]
[321070432,1711865443435,-374.3592451,0.00041642,4]
[321070433,1711865443445,-526.12420691,0.00041642,4]
[321070434,1711865443456,-596.21644737,0.00041642,4]
[321070435,1711865443465,-527.50608586,0.00041642,4]
[321070436,1711865443474,-157.86520775,0.00041642,4]
[321070437,1711865443533,-379.50320881,0.00041642,4]
[321070438,1711865443543,-100.75419933,0.00041642,4]
[321070439,1711865443589,-417.20974952,0.00041642,4]
[321070440,1711865443599,-514.6889505,0.00041642,4]
[321070441,1711865443608,-524.8286061,0.00041642,4]
[321070442,1711865443617,-515.38554028,0.00041642,4]
[321070443,1711865443627,-506.13072017,0.00041642,4]
[321070444,1711865443636,-504.46862411,0.00041642,4]
[321070445,1711865443645,-532.29024056,0.00041642,4]
[321070446,1711865443656,-509.40896637,0.00041642,4]
[321070447,1711865443666,-511.73669036,0.00041642,4]
[321070448,1711865443675,-507.10617749,0.00041642,4]
[321070449,1711865443684,-517.5656196,0.00041642,4]
[321070450,1711865443693,-517.43406804,0.00041642,4]
[321070451,1711865443702,-186.59460928,0.00041642,4]
[321070452,1711865443753,-313.40539072,0.00041642,4]
[321070453,1711865443763,-511.92655301,0.00041642,4]
[321070454,1711865443772,-516.7649601,0.00041642,4]
[321070455,1711865443781,-504.89600101,0.00041642,4]
[321070456,1711865443790,-509.55684484,0.00041642,4]
[321070457,1711865443800,-538.06653155,0.00041642,4]
[321070458,1711865443809,-500.0,0.00041642,4]
[321070459,1711865443818,-131.22131877,0.00041642,4]
[321070491,1711865446475,-201.52971121,0.00033177,2]
[321070493,1711865446485,-167.45483879,0.000414,15]
[321070504,1711866212048,-151.81814755,0.00032285,2]
[321070505,1711866212068,-1638.99138464,0.00032384,4]
[321070506,1711866212089,-209.19046781,0.00032385,4]
[321070507,1711866212779,-503.8842976,0.00032385,4]
[321070508,1711866212799,-1496.1157024,0.00032482,4]
[321070509,1711866213392,-2000.0,0.00032482,4]
[321070510,1711866213794,-2000.0,0.00032482,4]
[321070511,1711866214161,-2000.0,0.00032482,4]
[321070512,1711866214525,-2000.0,0.00032482,4]
[321070513,1711866214905,-2000.0,0.00032482,4]
[321070514,1711866215277,-2000.0,0.00032482,4]
[321070515,1711866215637,-2000.0,0.00032482,4]
[321070516,1711866216031,-2000.0,0.00032482,4]
[321070517,1711866216379,-1776.50284731,0.00032482,4]
[321070518,1711866256454,-2000.0,0.00032483,4]
[321070519,1711866256982,-2000.0,0.00032483,4]
[321070520,1711866257442,-2000.0,0.00032483,4]
[321070521,1711866262270,-324.80264945,0.00032483,4]
[321070544,1711866471635,-282.1782915,0.00032382,2]
[321070545,1711866471659,-738.0,0.00032382,2]
[321070546,1711866497117,-2000.0,0.00032383,2]
[321070547,1711866498703,-1008.7428,0.00032383,2]
[321070548,1711866498723,-392.8186011,0.00032482,2]
[321070549,1711866498742,-241.04997306,0.00032482,2]
[321070550,1711866498762,-238.24140793,0.00032791,2]
[321070551,1711866507696,119.14721791,0.00032382,2]
[321070552,1711866507717,48.92769595,0.00032382,2]
[321070555,1711866631446,-250.0,0.00033,3]
[321070556,1711866631456,-96.6814705,0.00035,3]
[321070557,1711866631477,-203.3185295,0.00035,3]
[321070558,1711866631487,-239.51313574,0.000356,3]
[321070559,1711866631696,-214.48686426,0.000356,3]
[321070560,1711866631706,-350.0,0.00037,3]
[321070561,1711866631716,-106.20144892,0.00037398,30]
[321070562,1711866631728,-193.78855108,0.00037398,30]
[321070563,1711866631738,-430.41,0.00037398,2]
[321070564,1711866631748,-157.61073249,0.00039,3]
[321070565,1711866631761,-242.38926751,0.00039,3]
[321070566,1711866631770,-250.0,0.00039144,2]
[321070567,1711866631780,-499.99,0.00039223,2]
[321070568,1711866631789,-66.65095138,0.00039223,5]
[321070569,1711866631801,-83.34904862,0.00039223,5]
[321070570,1711866631810,-651.32017171,0.00039224,4]
[321070571,1711866631826,-1105.79495962,0.00039224,4]
[321070572,1711866631840,-2499.58478142,0.00039224,4]
[321070573,1711866637539,-14020.2,0.00039224,4]
[321070574,1711866637701,-995.71863696,0.00039224,4]
[321070575,1711866637711,-471.53,0.00039226,2]
[321070576,1711866637721,-180.43,0.00039268,120]
[321070577,1711866637731,-202.12,0.00039273,120]
[321070578,1711866637741,-436.95,0.00039278,2]
[321070579,1711866637751,-250.0,0.00039282,112]
[321070580,1711866637760,-211.05,0.00039287,2]
[321070581,1711866637771,-209.9,0.00039287,10]
[321070582,1711866637781,-166.38,0.0003929,2]
[321070583,1711866637790,-154.51,0.00039321,15]
[321070584,1711866637799,-1910.03402085,0.00039337,60]
[321070585,1711866637812,-643.78597915,0.00039337,60]
[321070586,1711866637821,-1364.20198122,0.00039338,2]
[321070587,1711866637833,-2021.39152129,0.00039338,2]
[321070612,1711866639590,-20514.40649749,0.00039338,2]
[321070613,1711866639600,-640.0,0.00039389,2]
[321070614,1711866639610,-3586.52,0.00039429,2]
[321070615,1711866639621,-841.62,0.00039519,2]
[321070616,1711866639633,-798.4,0.00039534,2]
[321070617,1711866639643,-1605.393,0.00039552,2]
[321070618,1711866639653,-164.26,0.00039563,2]
[321070619,1711866639663,-748.32846953,0.00039612,4]
[321070620,1711866639674,-430.41,0.00039662,2]
[321070621,1711866639683,-164.26,0.00039672,2]
[321070622,1711866639692,-164.26,0.0003978,2]
[321070623,1711866639702,-185.24,0.00039786,120]
[321070624,1711866639710,-360.0,0.00039854,2]
[321070625,1711866639720,-164.26,0.00039889,2]